[Event "GrandPrix_30.05"]
[Site "Chess.com"]
[Date "2020.05.30"]
[Round "2"]
[White "hubertsmazak"]
[Black "VSanduleac"]
[Result "0-1"]
[WhiteElo "2221"]
[BlackElo "2280"]
[TimeControl "600+2"]
[EndTime "8:44:01 PDT"]
[Termination "VSanduleac won by resignation"]

1. d4 {[%clk 0:10:01.9]} 1... d6 {[%clk 0:09:59.5]} 2. e4 {[%clk 0:09:59.9]}
2... Nf6 {[%clk 0:09:58.7]} 3. Nc3 {[%clk 0:10:00.3]} 3... g6 {[%clk 0:09:59.2]}
4. Bg5 {[%clk 0:09:58.1]} 4... Bg7 {[%clk 0:09:59.7]} 5. f4 {[%clk 0:09:58.3]}
5... c6 {[%clk 0:09:58.9]} 6. Nf3 {[%clk 0:09:58.6]} 6... Qb6 {[%clk 0:09:56.4]}
7. Rb1 {[%clk 0:09:56.9]} 7... Bg4 {[%clk 0:09:45.4]} 8. Be2 {[%clk 0:09:51.6]}
8... h6 {[%clk 0:09:29.9]} 9. Bxf6 {[%clk 0:09:51.3]} 9... Bxf6 {[%clk
0:09:29.5]} 10. e5 {[%clk 0:09:52.6]} 10... Bg7 {[%clk 0:09:29.6]} 11. Qd2
{[%clk 0:09:32.9]} 11... Nd7 {[%clk 0:09:22.7]} 12. Na4 {[%clk 0:09:07.1]} 12...
Qc7 {[%clk 0:09:20.1]} 13. O-O {[%clk 0:09:07.7]} 13... Rd8 {[%clk 0:09:15.7]}
14. Qe3 {[%clk 0:08:57.3]} 14... O-O {[%clk 0:09:08]} 15. Bd3 {[%clk 0:08:47.9]}
15... c5 {[%clk 0:09:03.9]} 16. dxc5 {[%clk 0:06:53.9]} 16... Bxf3 {[%clk
0:08:50]} 17. exd6 {[%clk 0:05:56.3]} 17... exd6 {[%clk 0:08:46.3]} 18. Qxf3
{[%clk 0:05:50.9]} 18... dxc5 {[%clk 0:08:41.8]} 19. Kh1 {[%clk 0:05:33.7]}
19... c4 {[%clk 0:08:39.7]} 20. Be4 {[%clk 0:05:34.6]} 20... b5 {[%clk
0:08:30.3]} 21. Nc3 {[%clk 0:05:34.9]} 21... Qc5 {[%clk 0:08:31.1]} 22. f5
{[%clk 0:05:01.7]} 22... g5 {[%clk 0:08:27.5]} 23. Rbd1 {[%clk 0:04:56.1]} 23...
Nf6 {[%clk 0:08:26.6]} 24. Nd5 {[%clk 0:04:52.5]} 24... Nxd5 {[%clk 0:08:23.7]}
25. Bxd5 {[%clk 0:04:42.7]} 25... Bf6 {[%clk 0:08:19.7]} 26. Rfe1 {[%clk
0:04:17.7]} 26... Kg7 {[%clk 0:08:19.4]} 27. b3 {[%clk 0:04:04.9]} 27... Rd6
{[%clk 0:08:13.5]} 28. bxc4 {[%clk 0:03:59.2]} 28... bxc4 {[%clk 0:08:07]} 29.
Be4 {[%clk 0:03:44.7]} 29... Rfd8 {[%clk 0:08:04.8]} 30. Rxd6 {[%clk 0:03:40.2]}
30... Rxd6 {[%clk 0:08:05.4]} 31. h3 {[%clk 0:03:37.8]} 31... Rd2 {[%clk
0:07:55.1]} 32. Rb1 {[%clk 0:03:35.9]} 32... Qd4 {[%clk 0:07:45.9]} 33. c3
{[%clk 0:03:32.7]} 33... Qxc3 {[%clk 0:07:37.6]} 34. Qxc3 {[%clk 0:03:26.9]}
34... Bxc3 {[%clk 0:07:37.5]} 35. Rb7 {[%clk 0:03:14.9]} 35... Rd1+ {[%clk
0:07:31.7]} 36. Kh2 {[%clk 0:03:14.7]} 36... Be5+ {[%clk 0:07:32.4]} 37. g3
{[%clk 0:03:16.2]} 37... Rd2+ {[%clk 0:07:33.3]} 38. Kg1 {[%clk 0:03:15.9]}
38... c3 {[%clk 0:07:33.3]} 39. Rb5 {[%clk 0:03:00.6]} 39... c2 {[%clk
0:07:26.5]} 40. Bxc2 {[%clk 0:03:00.4]} 40... Bd4+ {[%clk 0:07:27.4]} 0-1

[Event "GrandPrix_30.05"]
[Site "Chess.com"]
[Date "2020.05.30"]
[Round "2"]
[White "ehrenfeld"]
[Black "ZverevLev"]
[Result "1-0"]
[WhiteElo "2007"]
[BlackElo "2137"]
[TimeControl "600+2"]
[EndTime "8:44:08 PDT"]
[Termination "ehrenfeld won by checkmate"]

1. e4 {[%clk 0:10:01.9]} 1... c5 {[%clk 0:09:59.4]} 2. d3 {[%clk 0:10:01.8]}
2... Nc6 {[%clk 0:09:58.6]} 3. f4 {[%clk 0:10:02.7]} 3... e6 {[%clk 0:09:54.6]}
4. Nf3 {[%clk 0:10:02.8]} 4... Nge7 {[%clk 0:09:54.6]} 5. Be2 {[%clk 0:10:02.9]}
5... g6 {[%clk 0:09:55.3]} 6. O-O {[%clk 0:10:03.3]} 6... Bg7 {[%clk 0:09:55.8]}
7. c3 {[%clk 0:10:04.6]} 7... O-O {[%clk 0:09:55.1]} 8. Be3 {[%clk 0:10:05.4]}
8... b6 {[%clk 0:09:54.6]} 9. d4 {[%clk 0:10:05.1]} 9... d6 {[%clk 0:09:41.5]}
10. Na3 {[%clk 0:10:01.1]} 10... Bb7 {[%clk 0:09:41.8]} 11. dxc5 {[%clk
0:10:00.9]} 11... dxc5 {[%clk 0:09:33.1]} 12. Qc2 {[%clk 0:10:01.7]} 12... a6
{[%clk 0:09:29.5]} 13. Nc4 {[%clk 0:10:00.5]} 13... Qc7 {[%clk 0:09:29]} 14. a4
{[%clk 0:09:52.8]} 14... Rfd8 {[%clk 0:09:09.5]} 15. Qb3 {[%clk 0:09:40.5]}
15... Nc8 {[%clk 0:08:26.8]} 16. f5 {[%clk 0:09:35.5]} 16... exf5 {[%clk
0:07:51.2]} 17. exf5 {[%clk 0:09:34.9]} 17... Ne5 {[%clk 0:07:45.8]} 18. Ncxe5
{[%clk 0:08:24.1]} 18... Bxe5 {[%clk 0:07:47.7]} 19. fxg6 {[%clk 0:08:17.6]}
19... hxg6 {[%clk 0:06:41.5]} 20. Nxe5 {[%clk 0:08:08.6]} 20... Qxe5 {[%clk
0:06:43.4]} 21. Qxf7+ {[%clk 0:08:08.4]} 21... Kh8 {[%clk 0:06:43.2]} 22. Bf4
{[%clk 0:06:49.1]} 22... Qxe2 {[%clk 0:06:38.2]} 23. Qxb7 {[%clk 0:06:48.8]}
23... Ra7 {[%clk 0:06:01.6]} 24. Qc6 {[%clk 0:06:30.2]} 24... Kh7 {[%clk
0:05:33.1]} 25. Rae1 {[%clk 0:05:58.5]} 25... Qxb2 {[%clk 0:05:29.4]} 26. Re3
{[%clk 0:05:53.1]} 26... Qc2 {[%clk 0:04:59]} 27. Be5 {[%clk 0:05:06.6]} 27...
Rd3 {[%clk 0:04:55]} 28. Qxc8 {[%clk 0:04:50.9]} 28... Kh6 {[%clk 0:04:49.6]}
29. Qh3+ {[%clk 0:04:49.1]} 29... Kg5 {[%clk 0:04:47.9]} 30. Bf6# {[%clk
0:04:46.9]} 1-0

[Event "GrandPrix_30.05"]
[Site "Chess.com"]
[Date "2020.05.30"]
[Round "2"]
[White "chessfreak35"]
[Black "Karacsonyi_Gellert"]
[Result "1/2-1/2"]
[WhiteElo "2507"]
[BlackElo "2223"]
[TimeControl "600+2"]
[EndTime "8:44:23 PDT"]
[Termination "Game drawn by agreement"]

1. e4 {[%clk 0:10:01.9]} 1... c5 {[%clk 0:10:00.8]} 2. Nf3 {[%clk 0:10:03.1]}
2... Nc6 {[%clk 0:10:02.3]} 3. d4 {[%clk 0:10:03.1]} 3... cxd4 {[%clk
0:10:04.2]} 4. Nxd4 {[%clk 0:10:04.8]} 4... g6 {[%clk 0:10:05.5]} 5. c4 {[%clk
0:10:05.6]} 5... Nf6 {[%clk 0:10:05.4]} 6. Nc3 {[%clk 0:10:06.6]} 6... d6 {[%clk
0:10:06.7]} 7. Be2 {[%clk 0:10:06.1]} 7... Nxd4 {[%clk 0:10:08]} 8. Qxd4 {[%clk
0:10:06.9]} 8... Bg7 {[%clk 0:10:09.9]} 9. Be3 {[%clk 0:10:01.5]} 9... O-O
{[%clk 0:10:10.9]} 10. Qd2 {[%clk 0:10:03]} 10... a5 {[%clk 0:10:12.3]} 11. Rd1
{[%clk 0:09:42.6]} 11... a4 {[%clk 0:09:33.8]} 12. O-O {[%clk 0:09:42.6]} 12...
Qa5 {[%clk 0:09:31.4]} 13. f4 {[%clk 0:09:27.5]} 13... Bd7 {[%clk 0:09:23.4]}
14. Bd4 {[%clk 0:07:55.8]} 14... Bc6 {[%clk 0:09:20]} 15. Bf3 {[%clk 0:07:53.9]}
15... Nd7 {[%clk 0:07:39.1]} 16. Bxg7 {[%clk 0:07:28.7]} 16... Kxg7 {[%clk
0:07:41]} 17. e5 {[%clk 0:06:57.2]} 17... Qc5+ {[%clk 0:06:25.9]} 18. Kh1 {[%clk
0:06:56.9]} 18... Nb6 {[%clk 0:06:21]} 19. exd6 {[%clk 0:04:46.7]} 19... Nxc4
{[%clk 0:05:59.9]} 20. Qd4+ {[%clk 0:04:47.8]} 20... Qxd4 {[%clk 0:06:01.1]} 21.
Rxd4 {[%clk 0:04:48.3]} 21... Nxd6 {[%clk 0:06:02.6]} 22. Bxc6 {[%clk
0:04:49.4]} 22... bxc6 {[%clk 0:06:04.3]} 23. Rxa4 {[%clk 0:04:50.6]} 23... Nb5
{[%clk 0:05:22.9]} 24. Rxa8 {[%clk 0:04:12.8]} 24... Rxa8 {[%clk 0:05:24.8]} 25.
Nxb5 {[%clk 0:04:14.5]} 25... cxb5 {[%clk 0:05:24.2]} 26. a3 {[%clk 0:04:16.2]}
26... b4 {[%clk 0:05:09.7]} 27. axb4 {[%clk 0:04:14.6]} 27... Rb8 {[%clk
0:05:11.2]} 28. Re1 {[%clk 0:04:07.7]} 28... Rxb4 {[%clk 0:05:10.2]} 29. Rxe7
{[%clk 0:04:06.6]} 29... Rxb2 {[%clk 0:05:09.4]} 1/2-1/2

[Event "GrandPrix_30.05"]
[Site "Chess.com"]
[Date "2020.05.30"]
[Round "2"]
[White "klimkoj"]
[Black "N4700000"]
[Result "0-1"]
[WhiteElo "2113"]
[BlackElo "2311"]
[TimeControl "600+2"]
[EndTime "8:44:58 PDT"]
[Termination "N4700000 won by resignation"]

1. e4 {[%clk 0:10:01.9]} 1... c5 {[%clk 0:09:59.6]} 2. Nf3 {[%clk 0:10:02]} 2...
e6 {[%clk 0:10:00.3]} 3. d4 {[%clk 0:10:02.1]} 3... cxd4 {[%clk 0:10:02.2]} 4.
Nxd4 {[%clk 0:10:03.4]} 4... Nf6 {[%clk 0:10:02.8]} 5. Bd3 {[%clk 0:10:03.4]}
5... Nc6 {[%clk 0:10:03.3]} 6. Nxc6 {[%clk 0:10:03.2]} 6... bxc6 {[%clk
0:10:05.2]} 7. O-O {[%clk 0:10:03.3]} 7... d5 {[%clk 0:10:04.5]} 8. Nd2 {[%clk
0:10:03.7]} 8... Be7 {[%clk 0:10:03.5]} 9. Qe2 {[%clk 0:10:03]} 9... a5 {[%clk
0:09:58.6]} 10. f4 {[%clk 0:09:59.4]} 10... a4 {[%clk 0:09:45.1]} 11. Nf3 {[%clk
0:09:30.5]} 11... dxe4 {[%clk 0:09:23.2]} 12. Bxe4 {[%clk 0:09:22.4]} 12... Nxe4
{[%clk 0:09:21.6]} 13. Qxe4 {[%clk 0:09:21.4]} 13... Qd5 {[%clk 0:09:22.3]} 14.
Qxd5 {[%clk 0:08:53.5]} 14... cxd5 {[%clk 0:09:21.8]} 15. Be3 {[%clk 0:08:52.6]}
15... Ba6 {[%clk 0:09:14.6]} 16. Rfe1 {[%clk 0:08:49.4]} 16... O-O {[%clk
0:09:02.7]} 17. Bd4 {[%clk 0:08:47.5]} 17... Rfc8 {[%clk 0:09:00.3]} 18. c3
{[%clk 0:08:27.5]} 18... Rab8 {[%clk 0:08:58.7]} 19. b4 {[%clk 0:08:24.9]} 19...
a3 {[%clk 0:08:32.8]} 20. Ne5 {[%clk 0:08:18.3]} 20... Bc4 {[%clk 0:08:15.4]}
21. Kf2 {[%clk 0:07:49.2]} 21... Rb7 {[%clk 0:08:11.3]} 22. Ke3 {[%clk
0:07:37.5]} 22... f6 {[%clk 0:08:08.7]} 23. Nf3 {[%clk 0:07:24.3]} 23... Bd6
{[%clk 0:07:58.9]} 24. Kf2 {[%clk 0:07:11.2]} 24... Kf7 {[%clk 0:07:51.5]} 25.
g3 {[%clk 0:07:12.4]} 25... Bd3 {[%clk 0:07:49.1]} 26. Re3 {[%clk 0:06:52.3]}
26... Bf5 {[%clk 0:07:43.5]} 27. Nd2 {[%clk 0:06:09.9]} 27... g5 {[%clk
0:07:25.1]} 28. fxg5 {[%clk 0:05:21.9]} 28... e5 {[%clk 0:07:22.9]} 29. Rf3
{[%clk 0:05:22.4]} 29... exd4 {[%clk 0:07:13.7]} 30. Rxf5 {[%clk 0:05:22.1]}
30... dxc3 {[%clk 0:07:13.3]} 31. Rxf6+ {[%clk 0:05:21.8]} 31... Ke7 {[%clk
0:07:12.5]} 32. Re1+ {[%clk 0:05:14.3]} 32... Kd7 {[%clk 0:07:12.6]} 33. Nb3
{[%clk 0:04:54.9]} 33... Rxb4 {[%clk 0:07:00.7]} 34. Rf7+ {[%clk 0:04:30.3]}
34... Kc6 {[%clk 0:06:59.6]} 35. Rc1 {[%clk 0:04:28]} 35... d4 {[%clk
0:06:27.4]} 36. Rf3 {[%clk 0:03:59.4]} 36... Re8 {[%clk 0:06:11]} 37. Re1 {[%clk
0:03:39.1]} 37... Rxe1 {[%clk 0:05:56.6]} 38. Kxe1 {[%clk 0:03:39.5]} 38... Rxb3
{[%clk 0:05:53.7]} 0-1

[Event "GrandPrix_30.05"]
[Site "Chess.com"]
[Date "2020.05.30"]
[Round "2"]
[White "AsadliVugar"]
[Black "kostasam18"]
[Result "1-0"]
[WhiteElo "2463"]
[BlackElo "2089"]
[TimeControl "600+2"]
[EndTime "8:45:00 PDT"]
[Termination "AsadliVugar won by resignation"]

1. e4 {[%clk 0:10:01.9]} 1... e5 {[%clk 0:09:59.5]} 2. Nf3 {[%clk 0:10:02.1]}
2... Nc6 {[%clk 0:09:59.3]} 3. Bc4 {[%clk 0:10:03.7]} 3... Nf6 {[%clk 0:09:58]}
4. d3 {[%clk 0:10:04.5]} 4... Bc5 {[%clk 0:09:57.4]} 5. c3 {[%clk 0:10:05.2]}
5... a6 {[%clk 0:09:57.2]} 6. O-O {[%clk 0:10:06.3]} 6... d6 {[%clk 0:09:56.8]}
7. Bb3 {[%clk 0:10:07.2]} 7... Ba7 {[%clk 0:09:56.8]} 8. Be3 {[%clk 0:10:08]}
8... Bxe3 {[%clk 0:09:52.9]} 9. fxe3 {[%clk 0:10:09.4]} 9... O-O {[%clk
0:09:50.2]} 10. Nbd2 {[%clk 0:10:09]} 10... Ne7 {[%clk 0:09:50.1]} 11. Nh4
{[%clk 0:10:10.1]} 11... Kh8 {[%clk 0:09:49.6]} 12. h3 {[%clk 0:09:57.7]} 12...
Neg8 {[%clk 0:09:46.9]} 13. Qe1 {[%clk 0:09:53.8]} 13... g6 {[%clk 0:09:41.5]}
14. g4 {[%clk 0:09:51.4]} 14... Kg7 {[%clk 0:09:08.6]} 15. Qg3 {[%clk 0:09:51]}
15... Be6 {[%clk 0:08:59.7]} 16. Rf2 {[%clk 0:09:27.2]} 16... Qd7 {[%clk
0:08:30.8]} 17. Raf1 {[%clk 0:09:25.9]} 17... h5 {[%clk 0:08:18.7]} 18. Nf5+
{[%clk 0:08:02.5]} 18... Kh7 {[%clk 0:08:10]} 19. Qh4 {[%clk 0:08:00.3]} 19...
d5 {[%clk 0:07:17.2]} 20. Nf3 {[%clk 0:07:55.5]} 20... dxe4 {[%clk 0:06:57.6]}
21. Nxe5 {[%clk 0:07:31.9]} 21... Qb5 {[%clk 0:06:42]} 22. d4 {[%clk 0:07:29.7]}
22... Bxb3 {[%clk 0:06:37.3]} 23. axb3 {[%clk 0:07:30]} 23... gxf5 {[%clk
0:05:17.9]} 24. g5 {[%clk 0:07:16.3]} 24... Nd7 {[%clk 0:03:25.2]} 25. Qxh5+
{[%clk 0:07:13.6]} 25... Kg7 {[%clk 0:03:25]} 26. c4 {[%clk 0:06:59.9]} 26...
Qxb3 {[%clk 0:02:58.1]} 27. Nxd7 {[%clk 0:06:55.6]} 27... Qxe3 {[%clk
0:02:53.5]} 28. Kh1 {[%clk 0:06:48.2]} 28... Qxd4 {[%clk 0:02:32.5]} 29. Nf6
{[%clk 0:06:48.2]} 29... Nxf6 {[%clk 0:02:09.1]} 30. Qh6+ {[%clk 0:06:48.6]}
30... Kg8 {[%clk 0:02:06.8]} 31. gxf6 {[%clk 0:06:50]} 1-0

[Event "GrandPrix_30.05"]
[Site "Chess.com"]
[Date "2020.05.30"]
[Round "2"]
[White "Bulldog167"]
[Black "zuagroasta"]
[Result "1-0"]
[WhiteElo "2417"]
[BlackElo "1824"]
[TimeControl "600+2"]
[EndTime "8:45:08 PDT"]
[Termination "Bulldog167 won by resignation"]

1. e4 {[%clk 0:10:01.9]} 1... e5 {[%clk 0:10:00.1]} 2. Nc3 {[%clk 0:09:59.3]}
2... Nc6 {[%clk 0:09:57.4]} 3. Bc4 {[%clk 0:09:59.7]} 3... Nf6 {[%clk
0:08:43.7]} 4. d3 {[%clk 0:09:59.1]} 4... Bc5 {[%clk 0:08:35.9]} 5. Be3 {[%clk
0:09:31.1]} 5... d6 {[%clk 0:08:22.3]} 6. a3 {[%clk 0:09:12.9]} 6... a6 {[%clk
0:07:43.3]} 7. h3 {[%clk 0:08:58.4]} 7... Nd4 {[%clk 0:07:28.1]} 8. Nge2 {[%clk
0:08:55.4]} 8... c6 {[%clk 0:07:08.6]} 9. Ba2 {[%clk 0:08:55.1]} 9... O-O {[%clk
0:07:04.7]} 10. O-O {[%clk 0:08:41.4]} 10... Be6 {[%clk 0:06:22.9]} 11. Bxe6
{[%clk 0:08:36.3]} 11... fxe6 {[%clk 0:06:22.1]} 12. Ng3 {[%clk 0:08:10]} 12...
Qe8 {[%clk 0:06:19.8]} 13. Nce2 {[%clk 0:08:01.7]} 13... h5 {[%clk 0:05:11.6]}
14. Nxd4 {[%clk 0:07:47.4]} 14... exd4 {[%clk 0:05:06.6]} 15. Bg5 {[%clk
0:07:46.9]} 15... Qg6 {[%clk 0:05:04.7]} 16. Bxf6 {[%clk 0:07:47.7]} 16... Qxf6
{[%clk 0:04:28.5]} 17. Qxh5 {[%clk 0:07:42.3]} 17... Qf4 {[%clk 0:04:22.2]} 18.
Qg4 {[%clk 0:07:29.1]} 18... Qxg4 {[%clk 0:03:59.8]} 19. hxg4 {[%clk 0:07:31]}
19... Rf4 {[%clk 0:03:46.1]} 20. f3 {[%clk 0:07:32]} 20... Raf8 {[%clk
0:03:32.7]} 21. Nf5 {[%clk 0:06:31.4]} 21... exf5 {[%clk 0:03:18.7]} 22. exf5
{[%clk 0:06:33.3]} 22... d5 {[%clk 0:02:45.1]} 23. g3 {[%clk 0:06:34]} 23...
R4xf5 {[%clk 0:02:44.7]} 24. gxf5 {[%clk 0:06:35.9]} 24... Rf7 {[%clk
0:02:45.7]} 25. g4 {[%clk 0:06:34.8]} 25... Bd6 {[%clk 0:02:42.3]} 26. f4 {[%clk
0:06:31.2]} 26... Re7 {[%clk 0:02:41.5]} 27. Rae1 {[%clk 0:06:31.9]} 27... Rxe1
{[%clk 0:02:38.8]} 28. Rxe1 {[%clk 0:06:33.8]} 28... Kf7 {[%clk 0:02:35.2]} 29.
Rf1 {[%clk 0:06:34.5]} 29... Kf6 {[%clk 0:02:31.6]} 30. Kg2 {[%clk 0:06:35.8]}
30... c5 {[%clk 0:02:21.3]} 31. Kf3 {[%clk 0:06:35.9]} 31... b5 {[%clk
0:02:18.2]} 32. Re1 {[%clk 0:06:37.2]} 1-0

[Event "GrandPrix_30.05"]
[Site "Chess.com"]
[Date "2020.05.30"]
[Round "2"]
[White "Herracek"]
[Black "bsnsun"]
[Result "1-0"]
[WhiteElo "2423"]
[BlackElo "1952"]
[TimeControl "600+2"]
[EndTime "8:45:12 PDT"]
[Termination "Herracek won by resignation"]

1. c4 {[%clk 0:10:01.9]} 1... Nf6 {[%clk 0:09:58.4]} 2. Nc3 {[%clk 0:10:02.2]}
2... e6 {[%clk 0:09:59.3]} 3. e4 {[%clk 0:10:02.8]} 3... d5 {[%clk 0:09:59.6]}
4. e5 {[%clk 0:10:03.9]} 4... d4 {[%clk 0:10:00.3]} 5. exf6 {[%clk 0:10:05]}
5... dxc3 {[%clk 0:09:56.9]} 6. bxc3 {[%clk 0:10:06.9]} 6... Qxf6 {[%clk
0:09:56.8]} 7. Nf3 {[%clk 0:10:08.2]} 7... c5 {[%clk 0:09:54.6]} 8. Bd3 {[%clk
0:10:08.4]} 8... Nc6 {[%clk 0:09:53.3]} 9. Bc2 {[%clk 0:10:09]} 9... Be7 {[%clk
0:09:53.6]} 10. d4 {[%clk 0:10:08.6]} 10... h6 {[%clk 0:09:54.5]} 11. O-O {[%clk
0:10:09.2]} 11... O-O {[%clk 0:09:47]} 12. Qd3 {[%clk 0:10:09.5]} 12... Qf5
{[%clk 0:09:47.4]} 13. Qe2 {[%clk 0:10:01.3]} 13... Qh5 {[%clk 0:09:19.6]} 14.
Rb1 {[%clk 0:09:54]} 14... Bd6 {[%clk 0:08:27.8]} 15. Ba3 {[%clk 0:09:31]} 15...
Rd8 {[%clk 0:08:16.2]} 16. Qd3 {[%clk 0:08:45.1]} 16... g6 {[%clk 0:07:06.3]}
17. Rfd1 {[%clk 0:08:34.6]} 17... cxd4 {[%clk 0:05:03]} 18. Bxd6 {[%clk
0:08:33.8]} 18... Rxd6 {[%clk 0:05:04.1]} 19. cxd4 {[%clk 0:08:34.7]} 19... b6
{[%clk 0:04:46.4]} 20. Qe3 {[%clk 0:08:17.3]} 20... Ba6 {[%clk 0:04:12.7]} 21.
Bb3 {[%clk 0:07:28.6]} 21... Rad8 {[%clk 0:03:52.4]} 22. d5 {[%clk 0:07:29.3]}
22... exd5 {[%clk 0:03:22.7]} 23. Rxd5 {[%clk 0:07:28.9]} 23... Qg4 {[%clk
0:02:20.8]} 24. Rxd6 {[%clk 0:06:52.4]} 24... Rxd6 {[%clk 0:02:18.3]} 25. c5
{[%clk 0:06:51.9]} 25... bxc5 {[%clk 0:01:37]} 26. Qe8+ {[%clk 0:06:48.6]} 1-0

[Event "GrandPrix_30.05"]
[Site "Chess.com"]
[Date "2020.05.30"]
[Round "2"]
[White "Lukianoo"]
[Black "Velis23"]
[Result "1-0"]
[WhiteElo "2553"]
[BlackElo "2176"]
[TimeControl "600+2"]
[EndTime "8:45:46 PDT"]
[Termination "Lukianoo won by resignation"]

1. e4 {[%clk 0:09:59.4]} 1... c6 {[%clk 0:09:57.3]} 2. d4 {[%clk 0:09:56.8]}
2... d5 {[%clk 0:09:58]} 3. e5 {[%clk 0:09:58]} 3... Na6 {[%clk 0:09:48.1]} 4.
Nf3 {[%clk 0:09:53.3]} 4... g6 {[%clk 0:09:46.9]} 5. Be2 {[%clk 0:09:47.3]} 5...
h5 {[%clk 0:09:43.2]} 6. O-O {[%clk 0:09:46.2]} 6... Nc7 {[%clk 0:09:43.9]} 7.
c4 {[%clk 0:09:46.8]} 7... Bg4 {[%clk 0:09:42]} 8. b3 {[%clk 0:09:39.5]} 8...
Nh6 {[%clk 0:09:28.7]} 9. Nbd2 {[%clk 0:09:34.3]} 9... Nf5 {[%clk 0:09:21.7]}
10. h3 {[%clk 0:09:34]} 10... Bxf3 {[%clk 0:09:22.1]} 11. Nxf3 {[%clk
0:09:35.9]} 11... Bg7 {[%clk 0:09:17.4]} 12. Bd3 {[%clk 0:09:32.3]} 12... Qd7
{[%clk 0:08:25.5]} 13. Be3 {[%clk 0:09:12.2]} 13... O-O-O {[%clk 0:08:09.1]} 14.
Rc1 {[%clk 0:09:10.4]} 14... f6 {[%clk 0:07:36]} 15. exf6 {[%clk 0:07:57.5]}
15... exf6 {[%clk 0:07:33.1]} 16. Bf4 {[%clk 0:07:44.8]} 16... Ne6 {[%clk
0:05:53.8]} 17. Bh2 {[%clk 0:07:41.7]} 17... dxc4 {[%clk 0:05:48.7]} 18. Rxc4
{[%clk 0:07:21.1]} 18... Nexd4 {[%clk 0:05:24.9]} 19. Nxd4 {[%clk 0:07:18.4]}
19... Nxd4 {[%clk 0:05:24.9]} 20. Qc1 {[%clk 0:07:15.1]} 20... Bh6 {[%clk
0:03:27.4]} 21. Qc3 {[%clk 0:06:24.2]} 21... Rhe8 {[%clk 0:02:48]} 22. Qa5
{[%clk 0:06:10.3]} 22... b5 {[%clk 0:02:01]} 23. Rxd4 {[%clk 0:06:03.2]} 1-0

[Event "GrandPrix_30.05"]
[Site "Chess.com"]
[Date "2020.05.30"]
[Round "2"]
[White "fm_magua"]
[Black "abraham1982"]
[Result "0-1"]
[WhiteElo "1860"]
[BlackElo "2185"]
[TimeControl "600+2"]
[EndTime "8:45:46 PDT"]
[Termination "abraham1982 won by resignation"]

1. e4 {[%clk 0:10:01.9]} 1... c5 {[%clk 0:08:46.8]} 2. Nf3 {[%clk 0:09:58.5]}
2... e6 {[%clk 0:08:35.2]} 3. d4 {[%clk 0:09:32.8]} 3... cxd4 {[%clk 0:08:31.1]}
4. Nxd4 {[%clk 0:09:34.1]} 4... a6 {[%clk 0:08:16.5]} 5. Nc3 {[%clk 0:09:33]}
5... Qc7 {[%clk 0:07:50.1]} 6. Be2 {[%clk 0:09:33.2]} 6... Nf6 {[%clk
0:07:47.2]} 7. O-O {[%clk 0:09:31.8]} 7... Nc6 {[%clk 0:07:42.3]} 8. Be3 {[%clk
0:09:26.5]} 8... Ne5 {[%clk 0:07:39.3]} 9. f4 {[%clk 0:09:20]} 9... Nc4 {[%clk
0:07:35.9]} 10. Bxc4 {[%clk 0:08:54.9]} 10... Qxc4 {[%clk 0:07:30.4]} 11. e5
{[%clk 0:08:47.6]} 11... Nd5 {[%clk 0:07:29.5]} 12. Nxd5 {[%clk 0:08:48.7]}
12... Qxd5 {[%clk 0:07:26.5]} 13. f5 {[%clk 0:08:48.4]} 13... b5 {[%clk
0:07:16]} 14. Qh5 {[%clk 0:08:30.3]} 14... g6 {[%clk 0:07:12]} 15. fxg6 {[%clk
0:08:24.1]} 15... fxg6 {[%clk 0:07:10.6]} 16. Qg4 {[%clk 0:08:14.3]} 16... Bb7
{[%clk 0:07:05.7]} 17. Nf3 {[%clk 0:08:09.6]} 17... O-O-O {[%clk 0:07:02.4]} 18.
c4 {[%clk 0:08:06]} 18... bxc4 {[%clk 0:06:58.2]} 19. Rac1 {[%clk 0:08:07.1]}
19... Kb8 {[%clk 0:06:55]} 20. Rfd1 {[%clk 0:07:51.5]} 20... Qe4 {[%clk
0:06:46.6]} 21. Qg5 {[%clk 0:07:23.4]} 21... Be7 {[%clk 0:06:41.1]} 22. Qh6
{[%clk 0:06:44]} 22... g5 {[%clk 0:06:39.6]} 23. Bf2 {[%clk 0:06:29.3]} 23... g4
{[%clk 0:06:13]} 24. Ne1 {[%clk 0:06:30.3]} 24... Rhf8 {[%clk 0:05:55.4]} 25.
Rd4 {[%clk 0:06:17.9]} 25... Qxe5 {[%clk 0:04:45.8]} 26. Rdxc4 {[%clk
0:06:13.4]} 26... Bg5 {[%clk 0:04:37.9]} 27. Qxh7 {[%clk 0:05:22]} 27... Rxf2
{[%clk 0:04:24.8]} 28. Kxf2 {[%clk 0:05:18.8]} 28... Be3+ {[%clk 0:04:03.1]} 29.
Kf1 {[%clk 0:05:19.4]} 29... Rf8+ {[%clk 0:03:58.8]} 30. Nf3 {[%clk 0:05:19.1]}
30... gxf3 {[%clk 0:03:57.8]} 31. g3 {[%clk 0:05:20.5]} 31... Bxc1 {[%clk
0:03:52.1]} 32. Rc2 {[%clk 0:05:20.7]} 32... Be3 {[%clk 0:03:38.3]} 33. Qxd7
{[%clk 0:05:16.2]} 33... f2 {[%clk 0:03:30.7]} 0-1